fUST/lending_fUST_20250930
["ID","MTS","AMOUNT","RATE_DAILY","PERIOD"]
[388493377,1759212644867,-480.0,0.00020092,2]
[388493378,1759212644876,-206.76,0.00020092,2]
[388493379,1759212644886,-480.0,0.00020092,2]
[388493380,1759212644895,-480.0,0.00020092,2]
[388493381,1759212644905,-480.0,0.00020092,2]
[388493382,1759212644914,-544.41,0.00020092,2]
[388493383,1759212644923,-480.0,0.00020092,2]
[388493384,1759212644932,-480.0,0.00020092,2]
[388493385,1759212644941,-480.0,0.00020092,2]
[388493386,1759212644950,-480.0,0.00020092,2]
[388493387,1759212644959,-480.0,0.00020092,2]
[388493388,1759212644968,-481.61470646,0.00020092,2]
[388493389,1759212644977,-480.0,0.00020092,2]
[388493390,1759212644987,-610.16,0.00020092,2]
[388493391,1759212644997,-480.0,0.00020092,2]
[388493392,1759212645006,-480.0,0.00020092,2]
[388493393,1759212645015,-500.0,0.00020093,2]
[388493394,1759212645024,-436.93984528,0.00020093,2]
[388493395,1759212645032,-614.45,0.00020093,2]
[388493396,1759212645041,-480.0,0.00020093,2]
[388493397,1759212645050,-480.0,0.00020093,2]
[388493398,1759212645059,-525.24,0.00020093,2]
[388493399,1759212645069,-480.0,0.00020093,2]
[388493400,1759212645078,-480.0,0.00020093,2]
[388493401,1759212645087,-480.0,0.00020093,2]
[388493402,1759212645096,-480.0,0.00020093,2]
[388493403,1759212645107,-1258.49,0.00020093,2]
[388493405,1759212645117,-480.0,0.00020093,2]
[388493406,1759212645127,-877.74,0.00020093,2]
[388493407,1759212645135,-480.0,0.00020093,2]
[388493408,1759212645145,-480.0,0.00020093,2]
[388493409,1759212645154,-694.63,0.00020093,2]
[388493410,1759212645163,-480.0,0.00020093,2]
[388493411,1759212645172,-622.9,0.00020093,2]
[388493412,1759212645181,-480.0,0.00020093,2]
[388493413,1759212645190,-480.0,0.00020093,2]
[388493414,1759212645199,-733.88,0.00020093,2]
[388493415,1759212645208,-499.15,0.00020093,2]
[388493416,1759212645217,-480.0,0.00020093,2]
[388493417,1759212645226,-480.0,0.00020093,2]
[388493418,1759212645235,-480.0,0.00020093,2]
[388493419,1759212645244,-480.0,0.00020093,2]
[388493420,1759212645254,-480.0,0.00020093,2]
[388493421,1759212645264,-480.0,0.00020093,2]
[388493422,1759212645272,-480.0,0.00020093,2]
[388493423,1759212645281,-480.0,0.00020093,2]
[388493424,1759212645290,-440.86,0.00020093,2]
[388493425,1759212645299,-185.06,0.00020093,2]
[388493426,1759212645308,-525.93,0.00020093,2]
[388493427,1759212645317,-475.43,0.00020093,2]
[388493428,1759212645326,-480.0,0.00020093,2]
[388493429,1759212645334,-480.0,0.00020093,2]
[388493430,1759212645342,-480.0,0.00020093,2]
[388493431,1759212645351,-919.55,0.00020093,2]
[388493432,1759212645361,-480.0,0.00020093,2]
[388493433,1759212645370,-413.81,0.00020093,2]
[388493434,1759212645379,-480.0,0.00020093,2]
[388493435,1759212645388,-480.0,0.00020093,2]
[388493436,1759212645396,-480.0,0.00020093,2]
[388493437,1759212645406,-480.0,0.00020093,2]
[388493438,1759212645415,-480.0,0.00020093,2]
[388493439,1759212645424,-480.0,0.00020093,2]
[388493440,1759212645433,-480.0,0.00020093,2]
[388493441,1759212645441,-480.0,0.00020093,2]
[388493442,1759212645450,-312.23,0.00020093,2]
[388493443,1759212645459,-303.08,0.00020093,2]
[388493444,1759212645468,-480.0,0.00020093,2]
[388493445,1759212645477,-480.0,0.00020093,2]
[388493446,1759212645485,-480.0,0.00020093,2]
[388493447,1759212645494,-480.0,0.00020093,2]
[388493448,1759212645503,-480.0,0.00020093,2]
[388493449,1759212645512,-166.67,0.00020093,2]
[388493450,1759212645520,-488.14,0.00020093,2]
[388493451,1759212645529,-480.0,0.00020093,2]
[388493452,1759212645538,-1022.29,0.00020093,2]
[388493453,1759212645546,-480.0,0.00020094,2]
[388493454,1759212645555,-480.0,0.00020094,2]
[388493455,1759212645564,-480.0,0.00020094,2]
[388493456,1759212645572,-480.0,0.00020094,2]
[388493457,1759212645581,-480.0,0.00020094,2]
[388493458,1759212645590,-500.0,0.00020094,2]
[388493459,1759212645599,-480.0,0.00020094,2]
[388493460,1759212645607,-480.0,0.00020094,2]
[388493461,1759212645616,-480.0,0.00020094,2]
[388493462,1759212645625,-897.41,0.00020094,2]
[388493463,1759212645634,-480.0,0.00020094,2]
[388493464,1759212645643,-480.0,0.00020094,2]
[388493465,1759212645651,-480.0,0.00020094,2]
[388493466,1759212645660,-480.0,0.00020094,2]
[388493467,1759212645669,-480.0,0.00020094,2]
[388493468,1759212645678,-480.0,0.00020094,2]
[388493469,1759212645687,-480.0,0.00020094,2]
[388493470,1759212645696,-480.0,0.00020094,2]
[388493472,1759212645705,-480.0,0.00020094,2]
[388493475,1759212645714,-480.0,0.00020094,2]
[388493477,1759212645723,-480.0,0.00020094,2]
[388493479,1759212645732,-480.0,0.00020094,2]
[388493481,1759212645742,-292.62828762,0.00020094,2]
[388493483,1759212645751,-480.0,0.00020094,2]
[388493485,1759212645760,-480.0,0.00020094,2]
[388493487,1759212645769,-480.0,0.00020094,2]
[388493489,1759212645777,-480.0,0.00020094,2]
[388493491,1759212645786,-480.0,0.00020094,2]
[388493493,1759212645794,-712.8,0.00020094,2]
[388493494,1759212645803,-480.0,0.00020094,2]
[388493495,1759212645812,-480.0,0.00020094,2]
[388493497,1759212645821,-480.0,0.00020094,2]
[388493499,1759212645830,-480.0,0.00020094,2]
[388493500,1759212645839,-480.0,0.00020094,2]
[388493501,1759212645847,-480.0,0.00020094,2]
[388493503,1759212645859,-480.0,0.00020094,2]
[388493504,1759212645868,-298.60220806,0.00020095,2]
[388493505,1759212645877,-480.0,0.00020095,2]
[388493506,1759212645886,-480.0,0.00020095,2]
[388493507,1759212645894,-160.0,0.00020331,3]
[388493508,1759212645903,-800.0,0.00020343,2]
[388493509,1759212645912,-480.0,0.00020365,2]
[388493510,1759212645921,-480.0,0.00020365,2]
[388493511,1759212645930,-480.0,0.00020365,2]
[388493512,1759212645939,-480.0,0.00020366,2]
[388493513,1759212645948,-480.0,0.00020366,2]
[388493514,1759212645957,-307.08,0.00020366,2]
[388493515,1759212645966,-480.0,0.00020366,2]
[388493516,1759212645975,-480.0,0.00020366,2]
[388493517,1759212645984,-213.44231753,0.00020366,2]
[388493518,1759212645997,-480.0,0.00020366,2]
[388493519,1759212646006,-480.0,0.00020366,2]
[388493520,1759212646015,-3407.52,0.00020366,2]
[388493521,1759212646023,-480.0,0.00020366,2]
[388493522,1759212646034,-480.0,0.00020366,2]
[388493523,1759212646043,-480.0,0.00020366,2]
[388493524,1759212646053,-480.0,0.00020366,2]
[388493525,1759212646062,-480.0,0.00020366,2]
[388493526,1759212646072,-480.0,0.00020366,2]
[388493527,1759212646081,-3861.2,0.00020366,2]
[388493528,1759212646090,-480.0,0.00020366,2]
[388493529,1759212646099,-701.8,0.00020366,2]
[388493530,1759212646111,-480.0,0.00020366,2]
[388493531,1759212646120,-480.0,0.00020366,2]
[388493532,1759212646130,-480.0,0.00020366,2]
[388493533,1759212646143,-480.0,0.00020366,2]
[388493535,1759212646153,-480.0,0.00020366,2]
[388493536,1759212646162,-480.0,0.00020366,2]
[388493537,1759212646171,-544.41,0.00020366,2]
[388493538,1759212646180,-480.0,0.00020366,2]
[388493540,1759212646190,-480.0,0.00020366,2]
[388493541,1759212646199,-480.0,0.00020366,2]
[388493543,1759212646209,-480.0,0.00020366,2]
[388493545,1759212646218,-480.0,0.00020366,2]
[388493547,1759212646227,-610.16,0.00020366,2]
[388493548,1759212646236,-449.95,0.00020366,2]
[388493550,1759212646245,-480.0,0.00020366,2]
[388493552,1759212646255,-500.0,0.00020367,2]
[388493554,1759212646264,-480.0,0.00020367,2]
[388493555,1759212646272,-480.0,0.00020367,2]
[388493556,1759212646281,-661.55,0.00020367,2]
[388493557,1759212646290,-480.0,0.00020367,2]
[388493558,1759212646299,-480.0,0.00020367,2]
[388493559,1759212646308,-480.0,0.00020367,2]
[388493560,1759212646317,-480.0,0.00020367,2]
[388493561,1759212646326,-480.0,0.00020367,2]
[388493562,1759212646335,-480.0,0.00020367,2]
[388493563,1759212646344,-901.42,0.00020367,2]
[388493564,1759212646353,-480.0,0.00020367,2]
[388493565,1759212646364,-389.02950967,0.00020367,2]
[388493566,1759212646373,-151.0,0.00020367,2]
[388493567,1759212646382,-151.0,0.00020367,2]
[388493568,1759212646391,-1013.64,0.00020367,2]
[388493569,1759212646400,-480.0,0.00020367,2]
[388493570,1759212646409,-480.0,0.00020367,2]
[388493571,1759212646418,-480.0,0.00020367,2]
[388493572,1759212646427,-517.84,0.00020367,2]
[388493573,1759212646436,-830.21,0.00020367,2]
[388493574,1759212646446,-480.0,0.00020367,2]
[388493575,1759212646456,-480.0,0.00020367,2]
[388493576,1759212646465,-480.0,0.00020367,2]
[388493577,1759212646474,-277.8102235,0.00020367,2]
[388493578,1759212646482,-480.0,0.00020367,2]
[388493579,1759212646491,-600.5,0.00020367,2]
[388493580,1759212646500,-483.8,0.00020367,2]
[388493581,1759212646509,-521.63,0.00020367,2]
[388493582,1759212646518,-480.0,0.00020367,2]
[388493583,1759212646527,-614.45,0.00020367,2]
[388493584,1759212646536,-480.0,0.00020367,2]
[388493585,1759212646544,-480.0,0.00020367,2]
[388493586,1759212646553,-525.24,0.00020367,2]
[388493587,1759212646562,-480.0,0.00020367,2]
[388493588,1759212646570,-480.0,0.00020367,2]
[388493589,1759212646579,-480.0,0.00020367,2]
[388493590,1759212646588,-480.0,0.00020367,2]
[388493591,1759212646597,-1258.49,0.00020367,2]
[388493592,1759212646607,-480.0,0.00020367,2]
[388493593,1759212646616,-877.74,0.00020367,2]
[388493594,1759212646625,-480.0,0.00020367,2]
[388493595,1759212646634,-480.0,0.00020367,2]
[388493596,1759212646643,-694.63,0.00020367,2]
[388493597,1759212646653,-480.0,0.00020367,2]
[388493598,1759212646662,-622.9,0.00020367,2]
[388493599,1759212646671,-480.0,0.00020367,2]
[388493600,1759212646680,-480.0,0.00020367,2]
[388493601,1759212646689,-733.88,0.00020367,2]
[388493602,1759212646697,-499.15,0.00020367,2]
[388493603,1759212646706,-480.0,0.00020367,2]
[388493604,1759212646715,-480.0,0.00020367,2]
[388493605,1759212646724,-549.7483711,0.00020367,2]
[388493606,1759212646733,-480.0,0.00020367,2]
[388493607,1759212646742,-480.0,0.00020367,2]
[388493608,1759212646751,-480.0,0.00020367,2]
[388493609,1759212646760,-480.0,0.00020367,2]
[388493610,1759212646769,-511.16447713,0.00020367,2]
[388493611,1759212646778,-525.93,0.00020367,2]
[388493612,1759212646787,-480.0,0.00020367,2]
[388493613,1759212646796,-480.0,0.00020367,2]
[388493614,1759212646804,-480.0,0.00020367,2]
[388493615,1759212646813,-919.55,0.00020367,2]
[388493616,1759212646822,-480.0,0.00020367,2]
[388493617,1759212646831,-480.0,0.00020367,2]
[388493618,1759212646840,-480.0,0.00020367,2]
[388493619,1759212646849,-480.0,0.00020367,2]
[388493620,1759212646858,-480.0,0.00020367,2]
[388493621,1759212646867,-480.0,0.00020367,2]
[388493622,1759212646876,-480.0,0.00020367,2]
[388493623,1759212646885,-480.0,0.00020367,2]
[388493624,1759212646894,-480.0,0.00020367,2]
[388493625,1759212646903,-480.0,0.00020367,2]
[388493626,1759212646912,-480.0,0.00020367,2]
[388493627,1759212646921,-480.0,0.00020367,2]
[388493628,1759212646930,-480.0,0.00020367,2]
[388493629,1759212646938,-480.0,0.00020367,2]
[388493630,1759212646947,-488.14,0.00020367,2]
[388493631,1759212646956,-480.0,0.00020367,2]
[388493632,1759212646966,-1022.29,0.00020367,2]
[388493633,1759212646975,-278.90284557,0.00020368,2]
[388493634,1759212646984,-480.0,0.00020368,2]
[388493635,1759212646993,-480.0,0.00020368,2]
[388493636,1759212647002,-480.0,0.00020368,2]
[388493637,1759212647011,-480.0,0.00020368,2]
[388493638,1759212647020,-500.0,0.00020368,2]
[388493639,1759212647029,-480.0,0.00020368,2]
[388493640,1759212647038,-480.0,0.00020368,2]
[388493641,1759212647047,-480.0,0.00020368,2]
[388493642,1759212647056,-897.41,0.00020368,2]
[388493643,1759212647065,-480.0,0.00020368,2]
[388493644,1759212647075,-480.0,0.00020368,2]
[388493645,1759212647084,-480.0,0.00020368,2]
[388493646,1759212647093,-480.0,0.00020368,2]
[388493647,1759212647102,-480.0,0.00020368,2]
[388493648,1759212647111,-480.0,0.00020368,2]
[388493649,1759212647121,-391.82473399,0.00020368,2]
[388493650,1759212647130,-480.0,0.00020368,2]
[388493651,1759212647139,-480.0,0.00020368,2]
[388493652,1759212647149,-480.0,0.00020368,2]
[388493653,1759212647158,-480.0,0.00020368,2]
[388493654,1759212647168,-480.0,0.00020368,2]
[388493655,1759212647177,-480.0,0.00020368,2]
[388493656,1759212647186,-480.0,0.00020368,2]
[388493657,1759212647195,-326.4759976,0.00020368,2]
[388493658,1759212647203,-480.0,0.00020368,2]
[388493659,1759212647212,-480.0,0.00020368,2]
[388493660,1759212647222,-712.8,0.00020368,2]
[388493661,1759212647373,-480.0,0.00020368,2]
[388493662,1759212647383,-480.0,0.00020368,2]
[388493663,1759212647393,-480.0,0.00020368,2]
[388493664,1759212647402,-480.0,0.00020368,2]
[388493665,1759212647411,-480.0,0.00020368,2]
[388493666,1759212647421,-480.0,0.00020368,2]
[388493667,1759212647431,-480.0,0.00020368,2]
[388493668,1759212647441,-480.0,0.00020369,2]
[388493669,1759212647450,-480.0,0.00020369,2]
[388493670,1759212647460,-500.0,0.00020423,2]
[388493671,1759212647469,-500.0,0.00020423,2]
[388493672,1759212647478,-500.0,0.00020424,2]
[388493673,1759212647488,-151.0,0.00020426,2]
[388493674,1759212647497,-800.0,0.00020435,2]
[388493675,1759212647506,-500.0,0.00020436,2]
[388493676,1759212647515,-500.0,0.00020436,2]
[388493677,1759212647524,-500.0,0.00020443,2]
[388493678,1759212647533,-157.83153688,0.00020472,2]
[388493679,1759212647542,-151.0,0.00020472,2]
[388493680,1759212647551,-151.0,0.00020472,2]
[388493681,1759212647560,-1269.0,0.00020472,2]
[388493682,1759212647569,-500.0,0.00020472,2]
[388493683,1759212647578,-500.0,0.00020472,2]
[388493684,1759212647587,-151.0,0.00020472,2]
[388493685,1759212647596,-223.39107064,0.00020472,2]
[388493686,1759212647606,-998.152,0.00020525,2]
[388493687,1759212647615,-2156.0,0.00020525,2]
[388493688,1759212647625,-669.141,0.00020525,2]
[388493689,1759212647634,-410.0,0.00020525,2]
[388493690,1759212647643,-427.919,0.00020525,2]
[388493691,1759212647652,-2386.0,0.0002053,2]
[388493692,1759212647662,-2923.0,0.00020553,2]
[388493693,1759212647672,-480.0,0.00020639,2]
[388493694,1759212647682,-480.0,0.00020639,2]
[388493695,1759212647691,-480.0,0.00020639,2]
[388493696,1759212647700,-358.03156706,0.0002064,2]
[388493697,1759212647709,-218.9064706,0.0002064,2]
[388493698,1759212647718,-480.0,0.0002064,2]
[388493699,1759212647727,-480.0,0.0002064,2]
[388493700,1759212647737,-480.0,0.0002064,2]
[388493701,1759212647746,-480.0,0.0002064,2]
[388493702,1759212647755,-3407.52,0.0002064,2]
[388493703,1759212647765,-480.0,0.0002064,2]
[388493704,1759212647774,-480.0,0.0002064,2]
[388493705,1759212647783,-285.27,0.0002064,2]
[388493706,1759212647792,-480.0,0.0002064,2]
[388493707,1759212647802,-480.0,0.0002064,2]
[388493708,1759212647811,-451.21,0.0002064,2]
[388493709,1759212647821,-3861.2,0.0002064,2]
[388493710,1759212647831,-413.56,0.0002064,2]
[388493711,1759212647839,-701.8,0.0002064,2]
[388493712,1759212647848,-480.0,0.0002064,2]
[388493713,1759212647858,-480.0,0.0002064,2]
[388493714,1759212647870,-480.0,0.0002064,2]
[388493715,1759212647880,-480.0,0.0002064,2]
[388493716,1759212647889,-480.0,0.0002064,2]
[388493717,1759212647899,-480.0,0.0002064,2]
[388493718,1759212647908,-544.41,0.0002064,2]
[388493719,1759212647919,-480.0,0.0002064,2]
[388493720,1759212647928,-604.7,0.0002064,2]
[388493721,1759212647937,-480.0,0.0002064,2]
[388493722,1759212647947,-253.12,0.0002064,2]
[388493723,1759212647956,-480.0,0.0002064,2]
[388493724,1759212647965,-610.16,0.0002064,2]
[388493725,1759212647975,-480.0,0.0002064,2]
[388493726,1759212647984,-500.0,0.00020641,2]
[388493727,1759212647996,-480.0,0.00020641,2]
[388493728,1759212648006,-480.0,0.00020641,2]
[388493729,1759212648015,-661.55,0.00020641,2]
[388493730,1759212648024,-480.0,0.00020641,2]
[388493731,1759212648035,-480.0,0.00020641,2]
[388493732,1759212648044,-611.45027246,0.00020641,2]
[388493733,1759212648054,-480.0,0.00020641,2]
[388493734,1759212648063,-480.0,0.00020641,2]
[388493735,1759212648074,-480.0,0.00020641,2]
[388493736,1759212648083,-901.42,0.00020641,2]
[388493737,1759212648093,-480.0,0.00020641,2]
[388493738,1759212648102,-151.0,0.00020641,2]
[388493739,1759212648114,-151.0,0.00020641,2]
[388493740,1759212648123,-1013.64,0.00020641,2]
[388493741,1759212648133,-485.43096213,0.00020641,2]
[388493742,1759212648143,-480.0,0.00020641,2]
[388493743,1759212648153,-480.0,0.00020641,2]
[388493744,1759212648162,-517.84,0.00020641,2]
[388493745,1759212648172,-830.21,0.00020641,2]
[388493746,1759212648182,-480.0,0.00020641,2]
[388493747,1759212648191,-480.0,0.00020641,2]
[388493748,1759212648201,-480.0,0.00020641,2]
[388493749,1759212648211,-480.0,0.00020641,2]
[388493750,1759212648222,-600.5,0.00020641,2]
[388493751,1759212648231,-483.8,0.00020641,2]
[388493752,1759212648241,-521.63,0.00020641,2]
[388493753,1759212648252,-480.0,0.00020641,2]
[388493754,1759212648263,-614.45,0.00020641,2]
[388493755,1759212648273,-480.0,0.00020641,2]
[388493756,1759212648282,-480.0,0.00020641,2]
[388493757,1759212648293,-525.24,0.00020641,2]
[388493758,1759212648304,-480.0,0.00020641,2]
[388493759,1759212648314,-480.0,0.00020641,2]
[388493760,1759212648323,-480.0,0.00020641,2]
[388493761,1759212648333,-480.0,0.00020641,2]
[388493762,1759212648344,-1258.49,0.00020641,2]
[388493763,1759212648354,-265.30353108,0.00020641,2]
[388493764,1759212648364,-877.74,0.00020641,2]
[388493765,1759212648373,-480.0,0.00020641,2]
[388493766,1759212648383,-480.0,0.00020641,2]
[388493767,1759212648392,-694.63,0.00020641,2]
[388493768,1759212648402,-480.0,0.00020641,2]
[388493769,1759212648411,-622.9,0.00020641,2]
[388493770,1759212648421,-595.48319316,0.00020641,2]
[388493771,1759212648431,-480.0,0.00020641,2]
[388493772,1759212648442,-733.88,0.00020641,2]
[388493773,1759212648452,-499.15,0.00020641,2]
[388493774,1759212648461,-480.0,0.00020641,2]
[388493775,1759212648470,-480.0,0.00020641,2]
[388493776,1759212648479,-480.0,0.00020641,2]
[388493777,1759212648489,-480.0,0.00020641,2]
[388493778,1759212648500,-480.0,0.00020641,2]
[388493779,1759212648510,-480.0,0.00020641,2]
[388493780,1759212648521,-525.93,0.00020641,2]
[388493781,1759212648531,-490.04238519,0.00020641,2]
[388493782,1759212648541,-480.0,0.00020641,2]
[388493783,1759212648551,-480.0,0.00020641,2]
[388493784,1759212648560,-919.55,0.00020641,2]
[388493785,1759212648573,-480.0,0.00020641,2]
[388493786,1759212648583,-171.01032877,0.00020641,2]
[388493787,1759212648592,-155.11,0.00020641,2]
[388493788,1759212648602,-480.0,0.00020641,2]
[388493789,1759212648612,-480.0,0.00020641,2]
[388493790,1759212648621,-480.0,0.00020641,2]
[388493791,1759212648631,-480.0,0.00020641,2]
[388493792,1759212648641,-480.0,0.00020641,2]
[388493793,1759212648651,-480.0,0.00020641,2]
[388493794,1759212648660,-480.0,0.00020641,2]
[388493795,1759212648672,-480.0,0.00020641,2]
[388493796,1759212648689,-480.0,0.00020641,2]
[388493797,1759212648698,-480.0,0.00020641,2]
[388493798,1759212648709,-480.0,0.00020641,2]
[388493799,1759212648720,-488.14,0.00020641,2]
[388493800,1759212648730,-480.0,0.00020641,2]
[388493801,1759212648741,-1022.29,0.00020641,2]
[388493802,1759212648754,-480.0,0.00020642,2]
[388493803,1759212648764,-604.01982105,0.00020642,2]
[388493804,1759212648774,-480.0,0.00020642,2]
[388493805,1759212648784,-480.0,0.00020642,2]
[388493806,1759212648794,-500.0,0.00020642,2]
[388493807,1759212648803,-480.0,0.00020642,2]
[388493808,1759212648812,-480.0,0.00020642,2]
[388493809,1759212648822,-480.0,0.00020642,2]
[388493810,1759212648831,-897.41,0.00020642,2]
[388493811,1759212648840,-480.0,0.00020642,2]
[388493812,1759212648849,-480.0,0.00020642,2]
[388493813,1759212648858,-480.0,0.00020642,2]
[388493814,1759212648868,-480.0,0.00020642,2]
[388493815,1759212648877,-480.0,0.00020642,2]
[388493816,1759212648887,-480.0,0.00020642,2]
[388493817,1759212648896,-480.0,0.00020642,2]
[388493818,1759212648906,-553.90522368,0.00020642,2]
[388493819,1759212648917,-480.0,0.00020642,2]
[388493820,1759212648927,-480.0,0.00020642,2]
[388493821,1759212648936,-480.0,0.00020642,2]
[388493822,1759212648946,-480.0,0.00020642,2]
[388493823,1759212648955,-480.0,0.00020642,2]
[388493824,1759212648964,-480.0,0.00020642,2]
[388493825,1759212648973,-480.0,0.00020642,2]
[388493826,1759212648983,-712.8,0.00020642,2]
[388493827,1759212648992,-480.0,0.00020642,2]
[388493828,1759212649001,-480.0,0.00020642,2]
[388493829,1759212649011,-480.0,0.00020642,2]
[388493830,1759212649021,-480.0,0.00020642,2]
[388493831,1759212649030,-480.0,0.00020642,2]
[388493832,1759212649040,-480.0,0.00020642,2]
[388493833,1759212649049,-480.0,0.00020642,2]
[388493834,1759212649059,-480.0,0.00020643,2]
[388493835,1759212649068,-480.0,0.00020643,2]
[388493836,1759212649077,-250.0,0.0002067,2]
[388493837,1759212649087,-250.0,0.0002067,2]
[388493838,1759212649096,-211.632,0.0002067,2]
[388493839,1759212649105,-150.772,0.0002067,2]
[388493840,1759212649114,-150.0,0.0002067,2]
[388493841,1759212649124,-251.827,0.0002067,2]
[388493842,1759212649133,-263.23,0.0002067,2]
[388493843,1759212649143,-295.0,0.0002067,2]
[388493844,1759212649152,-293.239,0.0002067,2]
[388493845,1759212649162,-500.0,0.00020714,2]
[388493846,1759212649171,-500.0,0.00020714,2]
[388493847,1759212649180,-500.0,0.00020714,2]
[388493848,1759212649190,-500.0,0.00020714,2]
[388493849,1759212649199,-500.0,0.00020714,2]
[388493850,1759212649208,-500.0,0.00020714,2]
[388493851,1759212649218,-500.0,0.00020714,2]
[388493852,1759212649228,-500.0,0.00020714,2]
[388493853,1759212649237,-500.0,0.00020738,2]
[388493854,1759212649247,-155.582,0.00020745,2]
[388493855,1759212649256,-198.82813676,0.00020746,2]
[388493856,1759212649266,-151.0,0.00020746,2]
[388493857,1759212649275,-1269.0,0.00020746,2]
[388493858,1759212649285,-577.87048398,0.00020746,2]
[388493859,1759212649294,-500.0,0.00020746,2]
[388493860,1759212649304,-151.0,0.00020746,2]
[388493861,1759212649314,-160.0,0.0002077,4]
[388493862,1759212649323,-151.0,0.0002091,2]
[388493863,1759212649332,-151.0,0.0002091,2]
[388493864,1759212649342,-1156.751358,0.0002091,2]
[388493865,1759212649351,-1156.751358,0.0002091,2]
[388493866,1759212649361,-151.0,0.0002091,2]
[388493867,1759212649370,-1156.751358,0.0002091,2]
[388493868,1759212649379,-1156.751358,0.0002091,2]
[388493869,1759212649389,-151.0,0.0002091,2]
[388493870,1759212649399,-151.0,0.0002091,2]
[388493871,1759212649408,-151.807615,0.0002091,2]
[388493872,1759212649418,-23084.6742368,0.0002091,2]
[388493873,1759212649428,-162.834267,0.00020912,10]
[388493874,1759212649439,-480.0,0.00020913,2]
[388493875,1759212649448,-480.0,0.00020913,2]
[388493876,1759212649458,-480.0,0.00020913,2]
[388493877,1759212649470,-475.68,0.00020914,2]
[388493878,1759212649479,-480.0,0.00020914,2]
[388493879,1759212649489,-480.0,0.00020914,2]
[388493880,1759212649498,-480.0,0.00020914,2]
[388493881,1759212649507,-3407.52,0.00020914,2]
[388493882,1759212649517,-480.0,0.00020914,2]
[388493883,1759212649526,-480.0,0.00020914,2]
[388493884,1759212649535,-348.42,0.00020914,2]
[388493885,1759212649545,-480.0,0.00020914,2]
[388493886,1759212649555,-3861.2,0.00020914,2]
[388493887,1759212649564,-701.8,0.00020914,2]
[388493888,1759212649573,-480.0,0.00020914,2]
[388493889,1759212649583,-480.0,0.00020914,2]
[388493890,1759212649594,-480.0,0.00020914,2]
[388493891,1759212649603,-480.0,0.00020914,2]
[388493892,1759212649613,-480.0,0.00020914,2]
[388493893,1759212649622,-480.0,0.00020914,2]
[388493894,1759212649631,-544.41,0.00020914,2]
[388493895,1759212649640,-624.2,0.00020914,2]
[388493896,1759212649650,-480.0,0.00020914,2]
[388493897,1759212649659,-480.0,0.00020914,2]
[388493898,1759212649668,-610.16,0.00020914,2]
[388493899,1759212649677,-480.0,0.00020914,2]
[388493900,1759212649686,-500.0,0.00020915,2]